bitfinex/quotes_BTCUSD_20251001
["timestamp","ask_amount","ask_price","bid_price","bid_amount"]
[1759307342957,0.03194,115100.0,115090.0,8.96419645]
[1759307343167,0.03194,115100.0,115090.0,9.05455645]
[1759307344008,0.03194,115100.0,115090.0,8.34519645]
[1759307344216,0.03194,115100.0,115090.0,9.05451645]
[1759307344466,0.03194,115100.0,115090.0,8.34208645]
[1759307344656,0.03194,115100.0,115090.0,9.05128645]
[1759307344794,0.03194,115100.0,115090.0,9.05439645]
[1759307345399,0.03194,115100.0,115090.0,9.07002618]
[1759307346084,0.03144,115100.0,115090.0,9.07002618]
[1759307346514,0.877817,115130.0,115120.0,0.17373175]
[1759307346717,0.08938547,115130.0,115120.0,0.54421492]
[1759307346923,0.08938547,115130.0,115120.0,0.61167755]
[1759307347128,0.08938547,115130.0,115120.0,0.26072755]
[1759307347329,0.08938547,115130.0,115120.0,0.97028755]
[1759307347532,0.26515213,115130.0,115120.0,0.97040755]
[1759307347747,0.09143547,115130.0,115120.0,0.97040755]
[1759307347931,0.08938547,115130.0,115120.0,0.97040755]
[1759307348225,0.08938547,115130.0,115120.0,0.26072755]
[1759307348428,0.26515213,115130.0,115120.0,0.25856755]
[1759307348619,0.26515213,115130.0,115120.0,0.96820755]
[1759307348822,0.09143547,115130.0,115120.0,0.25856755]
[1759307349045,0.09143547,115130.0,115120.0,0.60672755]
[1759307349250,0.26515213,115130.0,115120.0,0.25856755]
[1759307349559,0.26515213,115130.0,115120.0,0.51668755]
[1759307349699,0.26515213,115130.0,115120.0,0.3429958]
[1759307349908,0.26515213,115130.0,115120.0,0.02304]
[1759307350110,0.26515213,115130.0,115120.0,0.37156]
[1759307350413,0.26818213,115130.0,115120.0,0.02304]
[1759307350622,0.26818213,115130.0,115120.0,0.37152]
[1759307350807,0.26515213,115130.0,115120.0,0.54525175]
[1759307351200,0.26515213,115130.0,115120.0,0.37152]
[1759307351501,0.26818213,115130.0,115120.0,0.1134]
[1759307351747,0.26818213,115130.0,115120.0,0.37216]
[1759307352160,0.26818213,115130.0,115120.0,0.02304]
[1759307352360,0.26818213,115130.0,115120.0,0.28176]
[1759307352562,0.26818213,115130.0,115120.0,0.37212]
[1759307352781,0.26818213,115130.0,115120.0,0.02304]
[1759307352974,0.26818213,115130.0,115120.0,0.37212]
[1759307353418,0.26818213,115130.0,115120.0,0.02304]
[1759307353571,0.26818213,115130.0,115120.0,0.37196]
[1759307353767,0.26818213,115130.0,115120.0,0.02304]
[1759307353965,0.26818213,115130.0,115120.0,0.37196]
[1759307354939,0.26818213,115130.0,115120.0,0.28156]
[1759307355146,0.26818213,115130.0,115120.0,0.37192]
[1759307355372,0.26818213,115130.0,115120.0,0.02304]
[1759307355585,0.26818213,115130.0,115120.0,0.06940522]
[1759307355831,0.26818213,115130.0,115120.0,0.15976522]
[1759307356047,0.26818213,115130.0,115120.0,0.35840522]
[1759307356702,0.26818213,115130.0,115120.0,0.35840122]
[1759307357350,0.29833403,115130.0,115120.0,0.06940122]
[1759307357568,0.29833403,115130.0,115120.0,0.41796122]
[1759307357569,0.30645848,115130.0,115120.0,0.41796122]
[1759307358005,0.29833403,115130.0,115120.0,0.41796122]
[1759307359378,0.30645902,115130.0,115120.0,0.06940122]
[1759307359609,0.30645902,115130.0,115120.0,0.32752122]
[1759307360040,0.30645902,115130.0,115120.0,0.06940122]
[1759307360255,0.30645902,115130.0,115120.0,0.32740122]
[1759307360464,0.30645902,115130.0,115120.0,0.42740122]
[1759307360943,0.30645902,115130.0,115120.0,0.38104]
[1759307361377,0.30645902,115130.0,115120.0,0.12304]
[1759307361520,0.30645902,115130.0,115120.0,0.38088]
[1759307361935,0.17374685,115110.0,115100.0,0.04638254]
[1759307362142,0.26509232,115110.0,115100.0,0.13674254]
[1759307362341,0.29126232,115110.0,115100.0,0.04638254]
[1759307362538,0.29126232,115110.0,115100.0,0.13674254]
[1759307363202,0.29126232,115110.0,115100.0,0.04738254]
[1759307363203,0.30626232,115110.0,115100.0,0.04738254]
[1759307363404,0.32126232,115110.0,115100.0,0.35]
[1759307363656,0.35953911,115110.0,115100.0,0.002]
[1759307363864,0.35953911,115110.0,115100.0,0.16264]
[1759307365695,0.32953911,115110.0,115100.0,0.16064]
[1759307367107,0.32141422,115110.0,115100.0,0.16064]
[1759307368883,0.32141422,115110.0,115090.0,0.02432318]
[1759307368884,0.17376194,115100.0,115090.0,0.02432318]
[1759307369089,0.26610741,115100.0,115090.0,0.34814318]
[1759307369321,0.29127741,115100.0,115090.0,0.34814318]
[1759307370131,0.29227741,115100.0,115090.0,0.34914318]
[1759307370564,0.29227741,115100.0,115090.0,0.00146318]
[1759307370765,0.29227741,115100.0,115090.0,0.32454318]
[1759307371016,0.29227741,115100.0,115090.0,0.25858318]
[1759307371233,0.29327741,115100.0,115090.0,0.34994318]
[1759307371890,0.29031741,115100.0,115090.0,0.35199318]
[1759307372110,0.29031741,115100.0,115090.0,0.52577022]
[1759307372774,0.29031741,115100.0,115090.0,0.35199318]
[1759307372980,0.29031741,115100.0,115090.0,0.34994318]
[1759307373644,0.29031741,115100.0,115090.0,0.00246318]
[1759307373852,0.29327741,115100.0,115090.0,0.34982318]
[1759307374587,0.29327741,115100.0,115090.0,0.25934318]
[1759307374793,0.29327741,115100.0,115090.0,0.34970318]
[1759307375000,0.29327741,115100.0,115090.0,0.00246318]
[1759307375530,0.29327741,115100.0,115090.0,0.34970318]
[1759307376451,0.29327741,115100.0,115090.0,0.34958318]
[1759307376862,0.29327741,115100.0,115090.0,0.25922318]
[1759307377067,0.29327741,115100.0,115090.0,0.34958318]
[1759307378396,0.29327741,115100.0,115090.0,0.00246318]
[1759307378603,0.29327741,115100.0,115090.0,0.25902318]
[1759307378860,0.29327741,115100.0,115090.0,0.34938318]
[1759307380118,0.29327741,115100.0,115090.0,0.00246318]
[1759307380326,0.29327741,115100.0,115090.0,0.34926318]
[1759307380743,0.29031741,115100.0,115090.0,0.34926318]
[1759307381165,0.29031741,115100.0,115090.0,0.00246318]
[1759307381379,0.29327741,115100.0,115090.0,0.34926318]
[1759307382000,0.29327741,115100.0,115090.0,0.39563973]
[1759307382206,0.32342931,115100.0,115090.0,0.39555973]
[1759307382629,0.32342931,115100.0,115090.0,0.39055973]
[1759307383563,0.17379214,115080.0,115070.0,0.42388862]
[1759307383789,0.26317761,115080.0,115070.0,8.51643753]
[1759307383998,0.28638761,115080.0,115070.0,8.51944753]
[1759307384194,0.28834761,115080.0,115070.0,8.06455753]
[1759307384373,0.28834761,115080.0,115070.0,8.51643753]
[1759307384580,0.28834761,115080.0,115070.0,8.01451957]
[1759307384785,0.28834761,115080.0,115070.0,0.36147957]
[1759307384959,0.28834761,115080.0,115070.0,0.35942957]
[1759307385153,0.29334761,115080.0,115070.0,0.05746957]
[1759307385380,0.29834761,115080.0,115070.0,0.44938957]
[1759307385811,0.29834761,115080.0,115070.0,0.62319681]
[1759307386643,0.29834761,115080.0,115070.0,0.27627681]
[1759307386897,0.12259547,115080.0,115070.0,0.62817681]
[1759307387150,0.12259547,115080.0,115070.0,8.62817681]
[1759307387372,0.12259547,115080.0,115070.0,8.68994945]
[1759307387599,0.12259547,115080.0,115070.0,8.62817681]
[1759307388422,0.03321,115080.0,115070.0,8.68994945]
[1759307388644,0.03321,115080.0,115070.0,9.05356795]
[1759307389108,0.06947762,115120.0,115110.0,0.17374685]
[1759307389321,0.15886309,115120.0,115110.0,8.54274153]
[1759307389530,0.15886309,115120.0,115110.0,8.52536685]
[1759307390201,0.15886309,115120.0,115110.0,8.17880685]
[1759307390423,0.26857974,115120.0,115110.0,8.93192685]
[1759307390648,0.26857974,115120.0,115110.0,8.22380685]
[1759307390862,0.09484799,115120.0,115110.0,8.93184685]
[1759307391091,0.08984799,115120.0,115110.0,8.88684685]
[1759307391299,0.28790974,115120.0,115110.0,8.88684685]
[1759307391766,0.11417799,115120.0,115110.0,8.90384685]
[1759307393528,0.11417799,115120.0,115110.0,8.96568747]
[1759307393752,0.11417799,115120.0,115110.0,9.30568747]
[1759307395208,0.02479252,115120.0,115110.0,9.30568747]
[1759307397231,0.02479252,115120.0,115110.0,9.24384685]
[1759307397443,0.02479252,115120.0,115110.0,9.30544725]
[1759307397650,0.02479252,115120.0,115110.0,8.85300725]
[1759307397867,0.02479252,115120.0,115110.0,9.30480725]
[1759307399233,0.02479252,115120.0,115110.0,8.53580685]
[1759307399464,0.02479252,115120.0,115110.0,9.32033279]
[1759307399670,0.02479252,115120.0,115110.0,9.24304685]
[1759307399876,0.02479252,115120.0,115110.0,8.53580685]
[1759307400083,0.02479252,115120.0,115110.0,9.24300685]
[1759307400275,0.02479252,115120.0,115110.0,8.79116685]
[1759307400447,0.02479252,115120.0,115110.0,9.24296685]
[1759307400867,0.02479252,115120.0,115110.0,8.53580685]
[1759307401249,0.02479252,115120.0,115110.0,9.24292685]
[1759307402828,0.02479252,115120.0,115110.0,8.53580685]
[1759307403041,0.02479252,115120.0,115110.0,9.24284685]
[1759307403478,0.02479252,115120.0,115110.0,8.85257421]
[1759307403711,0.02479252,115120.0,115110.0,9.30429421]
[1759307404221,0.02479252,115120.0,115110.0,9.24276685]
[1759307405091,0.02479252,115120.0,115110.0,9.32001279]
[1759307405646,0.02479252,115120.0,115110.0,9.31993279]
[1759307406544,0.02479252,115120.0,115110.0,9.24268685]
[1759307406774,0.02479252,115120.0,115110.0,9.33207232]
[1759307407025,0.02479252,115120.0,115110.0,9.40931826]
[1759307407453,0.02479252,115120.0,115110.0,9.39231826]
[1759307407891,0.02479252,115120.0,115110.0,9.42631826]
[1759307408579,0.02479252,115120.0,115110.0,9.78759826]
[1759307409061,0.02479252,115120.0,115110.0,9.44759826]
[1759307409345,0.02479252,115120.0,115110.0,9.78763826]
[1759307409579,0.02479252,115120.0,115110.0,9.33591826]
[1759307409829,0.02479252,115120.0,115110.0,9.69727826]
[1759307410049,0.02479252,115120.0,115110.0,9.78759826]
[1759307410480,0.02479252,115120.0,115110.0,9.71035232]
[1759307410695,0.02479252,115120.0,115110.0,8.64219232]
[1759307410910,0.02479252,115120.0,115110.0,9.71035232]
[1759307411346,0.02479252,115120.0,115110.0,9.78759826]
[1759307412663,0.02479252,115120.0,115110.0,9.44759826]
[1759307412888,0.02479252,115120.0,115110.0,9.78759826]
[1759307413127,0.02479252,115120.0,115110.0,9.78807826]
[1759307413554,0.02479252,115120.0,115110.0,8.71943826]
[1759307413780,0.02479252,115120.0,115110.0,9.78807826]
[1759307414254,0.02479252,115120.0,115110.0,10.13369803]
[1759307414699,0.02479252,115120.0,115110.0,10.13353803]
[1759307415353,0.02479252,115120.0,115110.0,10.23353803]
[1759307415759,0.02479252,115120.0,115110.0,9.16505803]
[1759307415974,1e-08,115120.0,115110.0,10.4887578]
[1759307416191,1e-08,115120.0,115110.0,10.6015878]
[1759307416409,0.07757702,115160.0,115150.0,0.17368649]
[1759307416638,0.07769755,115160.0,115150.0,0.88591649]
[1759307416886,0.07769755,115160.0,115150.0,0.90842649]
[1759307417078,0.00821993,115160.0,115150.0,0.90842649]
[1759307417503,0.00821993,115160.0,115150.0,8.90842649]
[1759307417970,0.00821993,115160.0,115150.0,8.81810649]
[1759307418220,0.00821993,115160.0,115150.0,8.90866649]
[1759307418448,0.00821993,115160.0,115150.0,9.26099892]
[1759307418877,0.00821993,115160.0,115150.0,9.32259781]
[1759307419095,0.00012053,115160.0,115150.0,8.87123781]
[1759307419320,0.00012053,115160.0,115150.0,9.32291781]
[1759307420652,0.00012053,115160.0,115150.0,8.96097758]
[1759307420878,0.00012053,115160.0,115150.0,9.21801758]
[1759307421096,0.00012053,115160.0,115150.0,9.66965758]
[1759307421316,0.00012053,115160.0,115150.0,8.61535781]
[1759307421509,0.00012053,115160.0,115150.0,9.26247892]
[1759307422446,0.00012053,115160.0,115150.0,9.38201629]
[1759307422635,0.00012053,115160.0,115150.0,8.70192169]
[1759307422853,0.00012053,115160.0,115150.0,9.68164169]
[1759307422994,0.00012053,115160.0,115150.0,9.84333629]
[1759307423416,0.00012053,115160.0,115150.0,8.77329629]
[1759307423588,0.00012053,115160.0,115150.0,9.84333629]
[1759307423824,0.00012053,115160.0,115150.0,9.39165629]
[1759307424025,0.00012053,115160.0,115150.0,8.77929629]
[1759307424244,0.00012053,115160.0,115150.0,9.84953629]
[1759307424484,0.00026422,115180.0,115150.0,9.94953629]
[1759307424730,0.25265886,115190.0,115180.0,0.54379315]
[1759307424942,0.25265886,115190.0,115180.0,8.63829862]
[1759307425154,0.25265886,115190.0,115180.0,9.74703681]
[1759307425371,0.25265886,115190.0,115180.0,9.80847931]
[1759307425820,0.25265886,115190.0,115180.0,9.80843931]
[1759307426261,0.01838748,115200.0,115180.0,9.83343931]
[1759307426480,0.01850805,115200.0,115190.0,9.70616355]
[1759307426709,0.0016535,115210.0,115200.0,0.54376301]
[1759307426710,0.0202635,115210.0,115200.0,0.54376301]
[1759307426930,0.00759078,115220.0,115210.0,0.91386066]
[1759307427153,0.00759078,115220.0,115210.0,9.08362908]
[1759307427343,0.00759078,115220.0,115210.0,9.2954716]
[1759307427594,0.00759078,115220.0,115210.0,9.54177091]
[1759307427814,0.00759078,115220.0,115210.0,8.55737423]
[1759307428033,0.00759078,115220.0,115210.0,9.26649423]
[1759307428285,0.00759078,115220.0,115210.0,9.03143113]
[1759307428509,0.00759078,115220.0,115210.0,10.04637423]
[1759307428722,0.00759078,115220.0,115210.0,8.97585423]
[1759307429152,0.00759078,115220.0,115210.0,8.54135604]
[1759307429388,0.00759078,115220.0,115210.0,9.25051604]
[1759307429605,0.00759078,115220.0,115210.0,9.25251604]
[1759307430075,1e-08,115220.0,115210.0,9.39947841]
[1759307430293,0.0202,115230.0,115220.0,0.22915786]
[1759307430504,0.0202,115230.0,115220.0,9.02838333]
[1759307430743,0.0202,115230.0,115220.0,9.05614333]
[1759307430949,0.0202,115230.0,115220.0,9.40125605]
[1759307431167,0.0202,115230.0,115220.0,8.69141605]
[1759307431379,0.0202,115230.0,115220.0,9.39191834]
[1759307431597,0.0202,115230.0,115220.0,9.73191834]
[1759307431820,0.05210586,115260.0,115250.0,0.17353579]
[1759307432041,0.05256927,115260.0,115250.0,8.86729579]
[1759307432306,0.05256927,115260.0,115250.0,8.97932126]
[1759307432546,0.00897854,115290.0,115280.0,0.85860335]
[1759307432787,0.0091175,115290.0,115280.0,8.6028761]
[1759307433004,0.0091175,115290.0,115280.0,9.61293063]
[1759307433229,0.0091175,115290.0,115280.0,8.54125063]
[1759307433662,0.0091175,115290.0,115280.0,9.25173063]
[1759307433880,0.27197855,115290.0,115280.0,8.04464723]
[1759307434095,0.27413855,115290.0,115280.0,8.04464723]
[1759307434310,0.27734855,115290.0,115280.0,0.04464723]
[1759307434524,0.27734855,115290.0,115280.0,0.39400723]
[1759307434970,0.27734855,115290.0,115280.0,0.02464]
[1759307435191,0.27734855,115290.0,115280.0,0.37388]
[1759307435410,0.27734855,115290.0,115280.0,0.02264]
[1759307435623,0.27734855,115290.0,115280.0,0.374]
[1759307435835,0.27413855,115290.0,115280.0,0.374]
[1759307436060,0.09850297,115290.0,115280.0,0.54761063]
[1759307436282,0.0091175,115290.0,115280.0,8.55061063]
[1759307436495,0.0091175,115290.0,115280.0,8.20125063]
[1759307436718,0.0091175,115290.0,115280.0,8.90905063]
[1759307436987,0.0091175,115290.0,115280.0,8.91205063]
[1759307437206,0.0091175,115290.0,115280.0,8.91305063]
[1759307437459,0.27197855,115290.0,115280.0,8.02576]
[1759307437678,0.09850297,115290.0,115280.0,8.90905063]
[1759307437886,0.0091175,115290.0,115280.0,8.91205063]
[1759307438324,0.0091175,115290.0,115280.0,9.25205063]
[1759307439005,0.0091175,115290.0,115280.0,9.27747563]
[1759307439696,0.0091175,115290.0,115280.0,9.63839563]
[1759307439907,0.0091175,115290.0,115280.0,9.63827563]
[1759307440344,0.0091175,115290.0,115280.0,9.54803563]
[1759307440561,0.0091175,115290.0,115280.0,9.54799563]
[1759307440796,0.0091175,115290.0,115280.0,9.7276211]
[1759307441014,0.18829715,115330.0,115280.0,9.7276211]
[1759307441015,0.17343432,115350.0,115310.0,0.27318582]
[1759307441236,0.18210022,115330.0,115320.0,0.34952]
[1759307441484,0.27364569,115330.0,115320.0,0.34944]
[1759307441700,0.27148569,115330.0,115320.0,0.25924]
[1759307441928,0.27148569,115330.0,115320.0,0.34948]
[1759307442142,0.09805624,115330.0,115320.0,0.54555045]
[1759307442360,0.19135996,115350.0,115330.0,0.2731457]
[1759307442361,0.17352423,115350.0,115330.0,0.2731457]
[1759307442627,0.0081462,115350.0,115340.0,8.43256038]
[1759307442844,0.00013888,115350.0,115340.0,0.36102033]
[1759307443105,0.17352422,115350.0,115340.0,0.38366033]
[1759307443363,0.17352422,115350.0,115340.0,8.64944618]
[1759307443364,0.00013888,115350.0,115340.0,8.64944618]
[1759307443616,0.00013888,115350.0,115340.0,8.30090071]
[1759307443851,0.00013888,115350.0,115340.0,0.28184]
[1759307443852,0.26827969,115350.0,115340.0,0.28184]
[1759307444065,0.27628245,115350.0,115340.0,0.28184]
[1759307444286,0.30232019,115350.0,115340.0,0.28184]
[1759307444506,0.30232019,115350.0,115340.0,0.02264]
[1759307444723,0.27628245,115350.0,115340.0,0.37232]
[1759307444949,0.27307245,115350.0,115340.0,0.37232]
[1759307445202,0.27307245,115350.0,115340.0,0.02264]
[1759307445203,0.27628245,115350.0,115340.0,0.02264]
[1759307445422,0.27628245,115350.0,115310.0,0.06947762]
[1759307445423,0.17343045,115320.0,115310.0,0.16921795]
[1759307445648,0.26818592,115320.0,115310.0,0.35084]
[1759307445870,0.08938547,115320.0,115310.0,0.62914582]
[1759307446094,0.20473941,115330.0,115310.0,8.62914582]
[1759307446308,0.29412488,115330.0,115320.0,8.0]
[1759307446519,0.27148488,115330.0,115320.0,8.0]
[1759307446729,0.08938547,115330.0,115320.0,8.09974033]
[1759307446942,0.26280088,115330.0,115320.0,0.71236]
[1759307447178,0.26280088,115330.0,115320.0,0.81218033]
[1759307447390,0.17344549,115310.0,115300.0,0.46062033]
[1759307447604,0.17347558,115290.0,115280.0,0.10274033]
[1759307447818,0.26286105,115290.0,115280.0,8.0]
[1759307448036,0.08938547,115290.0,115280.0,8.81734033]
[1759307448251,0.08938547,115290.0,115280.0,8.83998033]
[1759307448252,0.26286105,115290.0,115280.0,8.83998033]
[1759307448477,0.26286105,115290.0,115280.0,8.12450033]
[1759307448691,0.26502105,115290.0,115280.0,0.47372]
[1759307448904,0.26823105,115290.0,115280.0,0.02264]
[1759307449182,0.26502105,115290.0,115280.0,0.02464]
[1759307449390,0.08938547,115290.0,115280.0,8.30334906]
[1759307449610,0.09154547,115290.0,115280.0,0.37436]
[1759307449832,0.26502105,115290.0,115280.0,0.54985063]
[1759307450050,0.26502105,115290.0,115280.0,0.02464]
[1759307450303,0.26502105,115290.0,115280.0,0.73524]
[1759307450518,0.26502105,115290.0,115280.0,0.02264]
[1759307450737,0.26502105,115290.0,115280.0,0.73528]
[1759307450945,0.26820105,115290.0,115280.0,0.02264]
[1759307451393,0.26820105,115290.0,115280.0,0.3356]
[1759307451607,0.26820105,115290.0,115280.0,0.2842]
[1759307451820,0.26820105,115290.0,115280.0,0.3744]
[1759307452730,0.27625329,115290.0,115280.0,0.3744]
[1759307452956,0.27625317,115290.0,115280.0,0.37448]
[1759307453210,0.26502105,115290.0,115280.0,0.37448]
[1759307453452,0.09744393,115290.0,115280.0,0.55004063]
[1759307453663,0.08938547,115290.0,115280.0,0.65279096]
[1759307453883,0.26286105,115290.0,115280.0,8.47930033]
[1759307454140,0.08938547,115290.0,115280.0,8.39794096]
[1759307454315,0.08938547,115290.0,115280.0,9.11070096]
[1759307454569,0.26286105,115290.0,115280.0,1.11070096]
[1759307454796,0.08938547,115290.0,115280.0,1.02078096]
[1759307455012,0.26286105,115290.0,115280.0,1.11098096]
[1759307455225,0.26484105,115290.0,115280.0,0.93542033]
[1759307455433,0.26484105,115290.0,115280.0,1.10891096]
[1759307455645,0.26484105,115290.0,115280.0,0.93542033]
[1759307456038,0.26484105,115290.0,115280.0,1.00917063]
[1759307456315,0.08938547,115290.0,115280.0,1.10891096]
[1759307456565,0.08938547,115290.0,115280.0,1.11391096]
[1759307457239,0.09136547,115290.0,115280.0,0.93534033]
[1759307457440,0.08938547,115290.0,115280.0,1.11126096]
[1759307457651,0.08938547,115290.0,115280.0,1.11427096]
[1759307458686,0.08938547,115290.0,115280.0,1.11126096]
[1759307458890,0.08938547,115290.0,115280.0,1.11427096]
[1759307459104,0.02264,115300.0,115290.0,0.27321591]
[1759307459325,0.18210197,115320.0,115300.0,0.27320086]
[1759307459527,0.19336798,115320.0,115310.0,0.45202033]
[1759307459737,0.19534798,115320.0,115310.0,0.45202033]
[1759307459948,0.19534798,115320.0,115310.0,0.47492033]
[1759307460160,0.09747148,115320.0,115310.0,8.65344582]
[1759307460822,0.09747148,115320.0,115310.0,8.16379102]
[1759307461037,0.02264,115330.0,115320.0,0.17343045]
[1759307461243,0.03086595,115330.0,115320.0,8.17644045]
[1759307461455,0.03086595,115330.0,115320.0,8.51851045]
[1759307461681,0.02277883,115330.0,115320.0,8.51851045]
[1759307462335,0.02277883,115330.0,115320.0,9.24814045]
[1759307462547,0.1121643,115330.0,115320.0,8.28168]
[1759307462760,0.1121643,115330.0,115320.0,8.90826045]
[1759307462968,0.1121643,115330.0,115320.0,8.93417045]
[1759307463171,0.1121643,115330.0,115320.0,8.93116045]
[1759307463382,0.28755971,115330.0,115320.0,8.0229]
[1759307463806,0.29073971,115330.0,115320.0,0.75586]
[1759307464015,0.28755971,115330.0,115320.0,0.75586]
[1759307464431,0.28755971,115330.0,115320.0,0.47394]
[1759307464635,0.29073971,115330.0,115320.0,0.75586]
[1759307464846,0.28755971,115330.0,115320.0,0.75586]
[1759307465265,0.29073971,115330.0,115320.0,0.1131]
[1759307465472,0.29073971,115330.0,115320.0,0.40102]
[1759307465684,0.29073971,115330.0,115320.0,0.0229]
[1759307465895,0.29073971,115330.0,115320.0,0.40094]
[1759307466104,0.29073971,115330.0,115320.0,0.31086]
[1759307466320,0.29073971,115330.0,115320.0,0.0229]
[1759307466539,0.29073971,115330.0,115320.0,0.3111]
[1759307466743,0.29073971,115330.0,115320.0,0.0229]
[1759307466968,0.28755971,115330.0,115320.0,0.31222]
[1759307467166,0.29073971,115330.0,115320.0,0.31222]
[1759307467608,0.28755971,115330.0,115320.0,0.31222]
[1759307467835,0.32473971,115330.0,115320.0,0.31222]
[1759307468254,0.32473971,115330.0,115320.0,0.0229]
[1759307468670,0.29073971,115330.0,115320.0,0.0229]
[1759307468873,0.29073971,115330.0,115320.0,0.2757]
[1759307469131,0.29073971,115330.0,115320.0,0.31354]
[1759307469341,0.29073971,115330.0,115320.0,0.40374]
[1759307469551,0.29073971,115330.0,115320.0,0.4037]
[1759307470188,0.29273971,115330.0,115320.0,0.0359]
[1759307470423,0.29273971,115330.0,115320.0,0.3135]
[1759307470623,0.29273971,115330.0,115320.0,0.12834]
[1759307470836,0.29073971,115330.0,115320.0,0.12834]
[1759307471045,0.29073971,115330.0,115320.0,0.13034]
[1759307472546,0.29273971,115330.0,115320.0,0.14134]
[1759307472962,0.32289161,115330.0,115320.0,0.0339]
[1759307473176,0.17344549,115310.0,115300.0,0.0902]
[1759307473381,0.26799096,115310.0,115300.0,0.32808]
[1759307473592,0.29168096,115310.0,115300.0,0.32808]
[1759307473803,0.25970356,115310.0,115300.0,0.32808]
[1759307474008,0.25970356,115310.0,115300.0,0.35098]
[1759307474640,0.26070356,115310.0,115300.0,0.35498]
[1759307475277,0.08725807,115310.0,115300.0,0.52844053]
[1759307475745,0.26070356,115310.0,115300.0,0.40742]
[1759307475951,0.26070356,115310.0,115300.0,0.0519]
[1759307475952,0.28439356,115310.0,115300.0,0.0519]
[1759307476159,0.28939356,115310.0,115300.0,0.2005]
[1759307477667,0.28939356,115310.0,115300.0,0.0519]
[1759307478314,0.41954546,115310.0,115300.0,0.21482]
[1759307478530,0.41954546,115310.0,115300.0,0.0519]
[1759307478962,0.78933491,115310.0,115300.0,0.0519]
[1759307479165,0.78933491,115310.0,115250.0,0.03068566]
[1759307479166,0.17352073,115260.0,115250.0,0.03068566]
[1759307479391,0.17353579,115250.0,115230.0,0.0902]
[1759307479609,0.17356591,115230.0,115200.0,0.22256013]
[1759307479830,0.26296748,115220.0,115210.0,0.45108]
[1759307480041,0.26296748,115220.0,115210.0,0.00800699]
[1759307480252,0.28613644,115220.0,115200.0,0.29084]
[1759307480458,0.26296644,115220.0,115210.0,0.00046341]
[1759307480686,0.11418547,115220.0,115210.0,0.17405945]
[1759307481119,0.0248,115220.0,115210.0,0.19659905]
[1759307481303,0.0248,115220.0,115210.0,0.17923945]
[1759307481531,0.0278,115220.0,115210.0,0.21023945]
[1759307481716,0.0278,115220.0,115210.0,8.60498151]
[1759307482210,0.0248,115220.0,115210.0,8.63040651]
[1759307482431,0.0248,115220.0,115210.0,8.67643501]
[1759307482869,0.0248,115220.0,115210.0,9.78035501]
[1759307483078,0.0248,115220.0,115210.0,8.67643501]
[1759307483312,0.0248,115220.0,115210.0,9.25843604]
[1759307483535,0.0248,115220.0,115210.0,8.91831604]
[1759307483746,0.0248,115220.0,115210.0,9.26149604]
[1759307483956,0.0248,115220.0,115210.0,9.40391001]
[1759307483957,0.0348,115220.0,115210.0,9.40391001]
[1759307484381,0.0248,115220.0,115210.0,9.39691001]
[1759307484618,0.0248,115220.0,115210.0,9.39991001]
[1759307484824,0.0328,115220.0,115210.0,8.18177604]
[1759307485035,0.0248,115220.0,115210.0,8.59337604]
[1759307485249,0.0298,115220.0,115210.0,8.59019604]
[1759307485471,0.0348,115220.0,115210.0,8.21159604]
[1759307485963,0.0348,115220.0,115210.0,0.95391604]
[1759307486177,0.0348,115220.0,115210.0,0.95709604]
[1759307486386,0.0348,115220.0,115210.0,9.83127096]
[1759307486595,0.0248,115220.0,115210.0,9.79527096]
[1759307487272,0.0248,115220.0,115210.0,9.05295096]
[1759307487491,0.0248,115220.0,115210.0,9.36089604]
[1759307487716,0.0268,115220.0,115210.0,9.37189604]
[1759307487894,0.0268,115220.0,115210.0,8.28977604]
[1759307488132,0.0248,115220.0,115210.0,9.02077604]
[1759307488354,0.0308,115220.0,115210.0,9.02377604]
[1759307488560,0.0328,115220.0,115210.0,9.03777604]
[1759307489434,0.0328,115220.0,115210.0,9.06834079]
[1759307491476,0.0328,115220.0,115210.0,9.53861501]
[1759307492115,0.0328,115220.0,115210.0,9.44781501]
[1759307492351,0.0328,115220.0,115210.0,8.44652627]
[1759307492598,0.0328,115220.0,115210.0,9.46648151]
[1759307492820,0.0328,115220.0,115210.0,8.72516151]
[1759307493140,0.0328,115220.0,115210.0,9.37757604]
[1759307493562,0.0328,115220.0,115210.0,8.68167849]
[1759307493787,0.0328,115220.0,115210.0,9.42327849]
[1759307494444,0.0328,115220.0,115210.0,8.97195849]
[1759307494660,0.0328,115220.0,115210.0,9.37733604]
[1759307495310,0.0328,115220.0,115210.0,9.49214651]
[1759307495522,0.0328,115220.0,115210.0,9.58366317]
[1759307495740,0.0328,115220.0,115210.0,9.52229841]
[1759307495950,0.06947762,115250.0,115240.0,0.8583403]
[1759307496166,0.06947762,115250.0,115240.0,9.37386345]
[1759307496397,0.06947762,115250.0,115240.0,9.41827267]
[1759307496610,0.06947762,115250.0,115240.0,9.44369767]
[1759307497069,0.06947762,115270.0,115260.0,0.51352073]
[1759307497290,0.06947762,115300.0,115290.0,0.17347558]
[1759307497507,0.24827815,115300.0,115290.0,0.38004]
[1759307497763,0.24827815,115300.0,115290.0,0.57744558]
[1759307497981,0.24827815,115300.0,115290.0,0.31389]
[1759307498195,0.0248,115310.0,115300.0,0.17346053]
[1759307498449,0.06947762,115320.0,115310.0,0.17344549]
[1759307498675,0.15932575,115320.0,115310.0,0.48087003]
[1759307498888,0.15932575,115320.0,115310.0,0.38028]
[1759307498889,0.3348562,115320.0,115310.0,0.38028]
[1759307499341,0.3348562,115320.0,115300.0,0.22798006]
[1759307499553,0.3348562,115320.0,115310.0,8.38016]
[1759307499773,0.3348562,115320.0,115310.0,0.38008]
[1759307499986,0.17344549,115310.0,115300.0,0.05451953]
[1759307500196,0.08938547,115310.0,115300.0,0.57727053]
[1759307500403,0.09148547,115310.0,115300.0,0.57727053]
[1759307500615,0.09148547,115310.0,115300.0,0.19739053]
[1759307500825,0.26493096,115310.0,115300.0,0.40373]
[1759307501043,0.26493096,115310.0,115300.0,0.02393]
[1759307501255,0.26493096,115310.0,115300.0,0.31329]
[1759307501520,0.26493096,115310.0,115300.0,0.40353]
[1759307501703,0.13748547,115310.0,115300.0,0.58099053]
[1759307501918,0.13538547,115310.0,115300.0,0.58099053]
[1759307502143,0.13538547,115310.0,115300.0,0.58699053]
[1759307502594,0.02526266,115320.0,115310.0,0.17344549]
[1759307502826,0.00046266,115320.0,115310.0,0.19079003]
[1759307503069,0.17923423,115320.0,115310.0,0.38032]
[1759307503311,0.00256266,115320.0,115310.0,0.55376549]
[1759307503541,0.00046266,115320.0,115310.0,0.55376549]
[1759307503774,0.00046266,115320.0,115310.0,0.57769549]
[1759307504010,0.31461858,115320.0,115310.0,0.02793]
[1759307504229,0.26861858,115320.0,115310.0,0.40573]
[1759307504659,0.31561858,115320.0,115310.0,0.11713]
[1759307504869,0.31561858,115320.0,115310.0,0.40857]